Cogmind - Beta 14 @@@ ROGUE MODE // 2024.11.20 @ 11:11:22 Player: Littlelink Result: Destroyed by G-34 Mercenary with Small Laser Performance ------------- Evolutions (1) 500 Regions Visited (3) 600 Robots Destroyed (33) 165 Value Destroyed (703) 703 Prototype IDs (2) 40 Alien Tech Used (0) 0 Bonus (0) 0 TOTAL SCORE: 2008 Bonus ------- None Cogmind --------- Core Integrity 0/400 Matter 218/300 Energy 99/250 System Corruption 5% Temperature Cool (6) Movement Core (100) Ox1 Location -9/Materials Parts ------- > --- POWER (2) -------- Ion Engine > --- PROPULSION (2) --- (None) > --- UTILITY (2) ------ Advanced Visual Processing Unit > --- WEAPON (3) ------- (None) > --- INVENTORY (5) ---- Improved Heat Sink Seismic Detector Targeting Computer Peak State ------------ > --- POWER ------------ Light Ion Engine Light Nuclear Core > --- PROPULSION ------- Aluminum Leg Aluminum Leg > --- UTILITY ---------- Weight Redist. System Advanced Visual Processing Unit > --- WEAPON ----------- Light Assault Rifle Heavy Assault Rifle Grenade Launcher > --- INVENTORY -------- Improved Heat Sink Seismic Detector Targeting Computer [Rating: 15] Favorites ----------- Power Light Nuclear Core Engine Ion Engine Power Core Light Nuclear Core Propulsion Aluminum Leg Leg Aluminum Leg Utility Seismic Detector Device Seismic Detector Processor Advanced Visual Processing Unit Weapon Light Assault Rifle Energy Gun EM Pulse Gun Ballistic Gun Light Assault Rifle Launcher Grenade Launcher Build | -11 -10 -10 -9 ------- Run | Yrd Mat Min Mat Slots Evolved 2 | . . . 2 Power 1 | . . . 1 Propulsion . | . . . . Utility . | . . . . Weapon 1 | . . . 1 Parts Attached 23 | 5 2 3 13 Power 4 | 1 . 1 2 Engine 3 | 1 . . 2 Core 1 | . . 1 . Reactor . | . . . . Propulsion 4 | 2 . . 2 Treads . | . . . . Leg 4 | 2 . . 2 Wheel . | . . . . Hover . | . . . . Flight . | . . . . Utility 5 | . 2 1 2 Device 4 | . 2 1 1 Storage . | . . . . Processor 1 | . . . 1 Hackware . | . . . . Protection . | . . . . Artifact . | . . . . Weapon 10 | 2 . 1 7 Energy Gun 3 | 1 . . 2 Energy Cannon . | . . . . Ballistic Gun 4 | 1 . 1 2 Ballistic Cannon . | . . . . Launcher 3 | . . . 3 Special Weapon . | . . . . Impact Weapon . | . . . . Slashing Weapon . | . . . . Piercing Weapon . | . . . . Special Melee Weapon . | . . . . Unidentified Prototypes . | . . . . Corrupted Parts 1 | . . . 1 System Corruption 5 | . . . 5 Parts Lost 15 | . . 1 14 Power 2 | . . . 2 Propulsion 4 | . . . 4 Utility 1 | . . . 1 Weapon 8 | . . 1 7 Highest Loss Streak 9 | . . 1 9 To Critical Strikes . | . . . . Average Slot Usage (%) 88 | . 84 99 73 Engine 7 | . 14 8 3 Core 6 | . . 5 8 Leg 23 | . 28 28 15 Device 21 | . 12 28 13 Processor 2 | . . . 7 Energy Gun 2 | . 14 . . Ballistic Gun 22 | . 14 27 18 Launcher 1 | . . . 4 Peak Build Rating 15 | 5 7 11 15 Average Rating 8 | 4 5 8 11 On Entrance 5 | . 5 7 11 Naked Turns . | . . . . Heaviest Build 15 | 8 10 9 15 Greatest Support 26 | 20 20 20 26 Greatest Overweight (x) 1 | . . . 1 Average Overweight (x) . | . . . . Largest Inventory Capacity 5 | 5 5 5 5 Average Capacity 5 | 5 5 5 5 Most Carried 5 | 4 2 3 5 Average Carried 1 | . . 1 3 Final Capacity 5 | 5 5 5 5 Final Carried 3 | . 1 1 3 Class Distribution -------------------- 83% | Mutant 10% | Scavenger-Skirmisher 3% | Skirmisher Dominant Class ---------------- Mutant | -10/Materials Mutant | -10/Mines Mutant | -9/Materials Resources | -11 -10 -10 -9 ----------- Run | Yrd Mat Min Mat Matter Collected 650 | 237 37 59 317 Remotely . | . . . . Salvage Created 780 | . 58 188 534 Parts 73 | . 9 20 44 Haulers Intercepted . | . . . . Recyclers Shooed 2 | . 1 . 1 Parts Field Recycled . | . . . . Retrieved Matter . | . . . . Parts Self-Destructed . | . . . . Prevented . | . . . . Kills | -11 -10 -10 -9 ------- Run | Yrd Mat Min Mat Combat Hostiles Destroyed 24 | . 3 8 13 Guns 17 | . 3 8 6 AOE 7 | . . . 7 Classes Destroyed 10 | . 2 1 7 Worker 3 | . . . 3 Builder 1 | . . . 1 Tunneler 1 | . . . 1 Recycler 1 | . . . 1 Operator 1 | . 1 . . Watcher 2 | . . . 2 Swarmer 12 | . 3 6 3 Grunt 7 | . . 2 5 Duelist 1 | . . . 1 Sentry 4 | . . . 4 Best Kill Streak 10 | . 3 3 10 Combat Bots Only 6 | . 3 3 6 Max Kills in Single Turn 3 | . 2 1 3 Gunslinging 1 | . 1 . . Exploded 2 | . . . 2 Melee . | . . . . Uniques/NPCs Destroyed . | . . . . Combat | -11 -10 -10 -9 -------- Run | Yrd Mat Min Mat Hostile Shots Fired 165 | . 11 44 110 Missed 49 | . 6 7 36 Damage Taken 1440 | . 41 340 1059 Core 478 | . 9 62 407 Absorbed by Shields . | . . . . Core Remaining (%) 85 | 100 . 71 . Volleys Fired 67 | . 4 21 42 Largest 3 | . 2 2 3 Hottest 73 | . 60 60 73 Shots Fired 141 | . 8 37 96 Gun 120 | . 8 37 75 Cannon . | . . . . Launcher 21 | . . . 21 Special . | . . . . Kinetic 94 | . 4 33 57 Thermal 1 | . . . 1 Explosive 21 | . . . 21 Electromagnetic 25 | . 4 4 17 Robot Hit Streak 5 | . 3 5 5 Robot Miss Streak 5 | . 2 5 4 Penetration Max . | . . . . Secondary Targets 2 | . 1 1 . Max Gunslinging Chain 1 | . 1 1 . Shots Hit Robots 62 | . 5 21 36 Core Hits 56 | . 4 14 38 Critical Kills . | . . . . Critical Parts Destroyed . | . . . . Critical Strikes . | . . . . Melee Attacks . | . . . . Impact . | . . . . Slashing . | . . . . Piercing . | . . . . Sneak Attacks . | . . . . Combat Hostiles . | . . . . Follow-up Attacks . | . . . . Damage Inflicted 1443 | . 105 191 1147 Guns 715 | . 59 191 465 Cannons . | . . . . Explosions 728 | . 46 . 682 Melee . | . . . . Ramming . | . . . . Kinetic 523 | . 18 170 335 Thermal 56 | . 46 . 10 Explosive 682 | . . . 682 Electromagnetic 182 | . 41 21 120 Impact . | . . . . Slashing . | . . . . Piercing . | . . . . Highest Corruption 5 | . . . 5 Average Corruption 5 | . . . 5 Corruption Purged . | . . . . Corruption Blocked . | . . . . Overload Shots . | . . . . Overflow Damage 34 | . . . 34 Projectiles . | . . . . Explosions 34 | . . . 34 Melee . | . . . . Knockbacks . | . . . . Impact . | . . . . Kinetic . | . . . . Secondary . | . . . . Self-Inflicted Damage 125 | . . . 125 Shots 5 | . . . 5 Rammed . | . . . . Targets Rammed . | . . . . Kicked . | . . . . Crushed . | . . . . Highest Temperature 281 | . 20 5 281 Average Temperature 98 | . 15 5 100 Received Heat Transfer 441 | . . 57 384 Effects 1 | . . . 1 Energy Bleed 1 | . . . 1 Siege Activations . | . . . . Robots Corrupted . | . . . . Combat Hostiles . | . . . . Parts Fried . | . . . . Impact Corruptions . | . . . . Robots Melted . | . . . . Combat Hostiles . | . . . . Parts Melted . | . . . . Heat Transferred 75 | . 50 . 25 Parts Sabotaged . | . . . . Parts Stolen . | . . . . Parts Stripped . | . . . . Power Chain Reactions 1 | . 1 . . Alert | -11 -10 -10 -9 ------- Run | Yrd Mat Min Mat Peak Influence 316 | . 83 161 316 Initial 31 | . . 31 . Average 83 | . 25 61 153 Maximum Alert Level 1 | . . . 1 Low Security (%) 85 | 100 100 100 54 Level 1 14 | . . . 45 Level 2 . | . . . . Level 3 . | . . . . Level 4 . | . . . . Level 5 . | . . . . High Security . | . . . . Max Security . | . . . . Squads Dispatched . | . . . . Investigation . | . . . . Extermination . | . . . . Reinforcement . | . . . . Assault . | . . . . Garrison . | . . . . Intercept . | . . . . Searches Triggered . | . . . . Construction Impeded . | . . . . Haulers Reinforced . | . . . . Active Scanning Responses . | . . . . Cargo Convoy Interrupts . | . . . . Stealth | -11 -10 -10 -9 --------- Run | Yrd Mat Min Mat Distress Signals 2 | . 1 . 1 Communications Jammed . | . . . . Distress Signals . | . . . . Times Spotted 30 | . 3 8 19 Peak Tracking Total 4 | . 4 3 4 Tactical Retreats 1 | . . . 1 Traps | -11 -10 -10 -9 ------- Run | Yrd Mat Min Mat Traps Triggered . | . . . . Indirectly . | . . . . Trap Hack Attempts . | . . . . Triggered . | . . . . Disarmed . | . . . . Reprogrammed . | . . . . Reused . | . . . . Traps Extracted . | . . . . Installed . | . . . . Triggered . | . . . . Machines | -11 -10 -10 -9 ---------- Run | Yrd Mat Min Mat Machines Disabled 2 | . . . 2 Max in Single Turn 1 | . . . 1 Machines Repaired . | . . . . Machines Dismantled . | . . . . Machines Sabotaged . | . . . . Overloaded Fab Kills . | . . . . Hacking | -11 -10 -10 -9 --------- Run | Yrd Mat Min Mat Machines Accessed 6 | . 4 . 2 Terminals 3 | . 2 . 1 Fabricators . | . . . . Repair Stations . | . . . . Recycling Units 2 | . 2 . . Scanalyzers 1 | . . . 1 Garrison Access . | . . . . Total Hacks 12 | . 6 . 6 Successful 10 | . 4 . 6 Failed 2 | . 2 . . Catastrophic 1 | . 1 . . Database Lockouts . | . . . . Manual . | . . . . Terminals 6 | . 4 . 2 Fabricators . | . . . . Repair Stations . | . . . . Recycling Units 2 | . 2 . . Scanalyzers 4 | . . . 4 Garrison Access . | . . . . Terminal Hacks 4 | . 2 . 2 Record 1 | . 1 . . Robot Analysis 1 | . . . 1 Prototype ID Bank 1 | . 1 . . Dispatch Records 1 | . . . 1 Fabricator Hacks . | . . . . Repair Station Hacks . | . . . . Recycling Unit Hacks 2 | . 2 . . Report Inventory 2 | . 2 . . Scanalyzer 4 | . . . 4 Insert Component 2 | . . . 2 Analyze 2 | . . . 2 Garrison Access Hacks . | . . . . Unauthorized Hacks . | . . . . Terminals . | . . . . Fabricators . | . . . . Repair Stations . | . . . . Recycling Units . | . . . . Scanalyzers . | . . . . Garrison Access . | . . . . Data Cores Recovered 1 | . 1 . . Used . | . . . . Hacking Detections 3 | . 1 . 2 Full Trace Events . | . . . . Feedback Events . | . . . . Feedback Blocked . | . . . . Robot Schematics Acquired . | . . . . Robots Built . | . . . . Authchips . | . . . . Time . | . . . . Total Robot Build Rating . | . . . . Part Schematics Acquired 2 | . . . 2 Parts Built . | . . . . Authchips . | . . . . Time . | . . . . Total Part Build Rating . | . . . . Parts Repaired . | . . . . Time . | . . . . Parts Recycled . | . . . . Recycled Matter . | . . . . Retrieved Matter . | . . . . Retrieved Components . | . . . . Parts Scanalyzed 2 | . . . 2 Part Schematics Acquired 2 | . . . 2 Parts Damaged . | . . . . Bothacking | -11 -10 -10 -9 ------------ Run | Yrd Mat Min Mat Used RIF Installer . | . . . . Robots Hacked . | . . . . Non-combat . | . . . . Combat . | . . . . Robot Hacks Applied . | . . . . Relay Couplers Released . | . . . . Fabnet Peak Effective % . | . . . . Robots Rewired . | . . . . Allies Hacked . | . . . . Hacks Repelled . | . . . . Allies | -11 -10 -10 -9 -------- Run | Yrd Mat Min Mat Total Allies . | . . . . Largest Group . | . . . . Highest-Rated Group . | . . . . Highest-Rated Ally . | . . . . Total Orders . | . . . . Ally Attacks . | . . . . Total Damage . | . . . . Kills . | . . . . Allies Corrupted . | . . . . Allies Melted . | . . . . Intel | -11 -10 -10 -9 ------- Run | Yrd Mat Min Mat Robot Analysis Total 1 | . . . 1 Derelict Logs Recovered 1 | . . 1 . Drone Launches . | . . . . Drone Recoveries . | . . . . Exploration | -11 -10 -10 -9 ------------- Run | Yrd Mat Min Mat Turns Passed 1876 | 66 263 960 587 Spaces Moved 1398 | 53 206 748 391 Core 122 | 10 . . 112 Treads . | . . . . Legs 1276 | 43 206 748 279 Wheels . | . . . . Hover . | . . . . Flight . | . . . . Fastest Speed 50 | 50 120 120 50 Average Speed 114 | 106 120 120 101 Slowest Speed 120 | 120 120 120 120 Overloaded Moves . | . . . . Propulsion Burnouts . | . . . . Robots Hopped . | . . . . Cave-ins Triggered . | . . . . Exploration Rate (%) 38 | 3 27 96 28 Regions Visited 3 Branch Regions 1 Pre-discovered Areas . | . . . . Known Exits Taken . | . . . . Unknown Exits Taken 3 | 1 1 1 . Scrap Searched 1 | . . 1 . Spaces Dug . | . . . . Terrain Destroyed 131 | . 7 . 124 Melee . | . . . . Projectile . | . . . . AOE 131 | . 7 . 124 Terrain Rammed . | . . . . Walls Destroyed . | . . . . Machines Disabled . | . . . . Actions | -11 -10 -10 -9 --------- Run | Yrd Mat Min Mat Total 1560 | 62 214 780 504 Wait 46 | . . 4 42 Move 1395 | 52 205 747 391 Hop . | . . . . Pick Up 24 | 5 3 3 13 Fast Attach . | . . . . Attach 19 | 5 2 1 11 Detach 1 | . . . 1 Swap 4 | . . 2 2 Drop 4 | . . 2 2 Fire 67 | . 4 21 42 Melee . | . . . . Ram . | . . . . Kick . | . . . . Crush . | . . . . Escape Stasis . | . . . . Rewire . | . . . . Trap . | . . . . Miscellaneous . | . . . . Route ------- -11/Scrapyard -10/Materials -10/Mines (discovered 2 exits: *Mat x2) -9/Materials (discovered 2 exits: [*Mat] / [*Min]) History --------- Turn | Location | Event 9 | -11/Scrapyard | Discovered new exit (range 14) 67 | -11/Scrapyard | Entered Materials 271 | -10/Materials | Discovered new exit (range 16) 313 | -10/Materials | Build established: Mutant 330 | -10/Materials | Entered Mines 409 | -10/Mines | Discovered new exit (range 7) 785 | -10/Mines | Learned Materials terminal intel 988 | -10/Mines | Discovered new exit (range 14) 1290 | -10/Mines | Entered Materials 1290 | -9/Materials | Evolved 2 slots: Power x1, Weapon x1 1291 | -9/Materials | Loaded intel: 12 terminal locations 1448 | -9/Materials | Discovered new exit (range 16) 1526 | -9/Materials | Lost 3 parts (2n1w) 1603 | -9/Materials | Discovered new exit (range 20) 1809 | -9/Materials | Lost 9 parts (2p2n5w) 1826 | -9/Materials | Core integrity fell below 50% 1850 | -9/Materials | Core integrity fell below 20% 1877 | -9/Materials | Destroyed by G-34 Mercenary with Small Laser Last Messages --------------- Hvy. EM Pulse Gun destroyed. G-47 Trooper destroyed. Atomic Centrifuge disabled. Grenade Launcher destroyed. Acquired Sml. Laser. Sml. Laser destroyed. Acquired Grenade Launcher. The unstable cave ceiling collapses. Critical hit (Burn: +37). K-01 Serf collects debris. U-05 Engineer lays Concrete. Weight Redist. System destroyed. Y-45 Defender destroyed. Grenade Launcher destroyed. Destroyed Grenade Launcher. Acquired 25 matter. U-05 Engineer lays Concrete. Acquired Corrupted Ion Engine. U-05 Engineer builds a Wall. Integrated Corrupted Ion Engine (+5). Map ----- +----------------------------------------------------+ | ?????????????????????# #?????# | | ?????????????????????# #?????? | | ??????????????######## ###???? | | ??????????????# #???? | | ??????????????# ##???? | | ??????????????# #???? | | ??????????????# ### ###### | | ??????????????# # = | | ??????????????# # | | ??????????????# + """ | | ????########### # # """ | | ????# = ## ######## """ | | ????#""" T # ##???# | | ????#""" # #???####### | | ????#""" # ! # ##????????? | | ????# + #????????? | | ????#""" # # ##????????? | | ????#""" # #?????????? | | ????#""" #########?????????? | | ????# # ###??????????? | | ????#+######## ! /#????????????? | | ????# #??????# #????????????? | | ????#=#??????# [ #????????????? | | ????#=#??????# #????????????? | | ????# #########+#####??????????? | | ??### @ #??????????? | | ??# # gga k #??????????? | | ??# # # +###+#### #??????????? | | ??# #=# #??????????????? | | # #%# #??????????????? | | ## #%#= "" """ #??????????????? | | ?# """ """ +??????????????? | | ?# # k""" """ #??????????????? | | ?# # ???????????????? | | ?#### "T" #??????????????? | | ????# """ #??????????????? | | ????# ###########??????????????? | | ????# #????????????????????????? | | ???? ????????????????????????? | | ???? ????????????????????????? | | ???? ????????????????????????? | | ???? ????????????????????????? | | ???? ????????????????????????? | | ????#+#????????????????????????? | | ???????????????????????????????? | | ???????????????????????????????? | | ???????????????????????????????? | | ???????????????????????????????? | | ???????????????????????????????? | | ???????????????????????????????? | +----------------------------------------------------+ Best States ------------- Heat Dissipation 42 Energy Generation 19 Energy Capacity 250 Matter Stores 300 Matter Capacity 300 Sight Range 20 Terrain Scan Density 10 Additional Mass Support 6 Evasion (%) 55 Item Schematics ----------------- Grenade Launcher | -9/Materials | Scanalyzed Imp. Heat Sink | -9/Materials | Scanalyzed Robot Schematics ------------------ None Fabricated ------------ Nothing Alien Tech Used ----------------- None Achievements -------------- None Challenges ------------ None Game ------ Seed PhasingDerelictComputer Manual? 0 Play Time 00:18:35 Cumulative 6.3 hours Start 2024.11.20 @ 10:28:57 End 2024.11.20 @ 11:11:22 Sessions 1 Manual Loads 0 Difficulty Rogue Special Mode None Game No. 18 Rogue 18 Adventurer 0 Explorer 0 Win Type - Total 0 Types 0/0/0/0/0/0/0/0/0 Lore% 5 Gallery% 12 Achievement% 12 Wizard Run 0 Options --------- Layout 1 ASCII 0 Keyboard 0 Movement Arrows Keybinds 0 Fullscreen 1 Font 18/SmallcapsGlow Map View 50x40 Zoom Use 0% Tactical HUD 0 Map Filters NONE Filters NONE Steam 1 RUN: 25eb452a-97de-4382-840b-9e680c74d14d